fUSD/lending_fUSD_20240912
["ID","MTS","AMOUNT","RATE_DAILY","PERIOD"]
[337813161,1726129837700,-250.0,0.00013179,2]
[337813162,1726129837710,-228.81,0.0001319,2]
[337813163,1726129837720,-427.87,0.00013269,2]
[337813164,1726129837731,-150.0,0.0001329,2]
[337813165,1726129837742,-150.0,0.0001329,2]
[337813166,1726129837751,-150.0,0.0001329,2]
[337813167,1726129837762,-70.95453739,0.0001329,2]
[337813168,1726129837776,-79.04546261,0.0001329,2]
[337813169,1726129837786,-150.0,0.0001329,2]
[337813170,1726129837796,-272.21,0.00013329,2]
[337813171,1726129837806,-499.99,0.00013351,2]
[337813172,1726129837816,-4512.58,0.00013351,2]
[337813173,1726129837825,-150.99,0.00013351,2]
[337813174,1726129837835,-162.33,0.00013365,2]
[337813175,1726129837844,-200.0,0.00013365,2]
[337813176,1726129837855,-250.0,0.00013365,2]
[337813177,1726129837864,-906.83,0.00013365,2]
[337813178,1726129837874,-3677.41117177,0.00013365,2]
[337813179,1726129837899,-4261.63882823,0.00013365,2]
[337813180,1726129837912,-189.98,0.00013365,2]
[337813181,1726129837922,-347.78,0.00013397,2]
[337813182,1726129837932,-153.74,0.00013421,2]
[337813183,1726129837942,-153.74,0.00013425,2]
[337813184,1726129837952,-55.44833706,0.00013429,2]
[337813185,1726129837975,-98.29166294,0.00013429,2]
[337813186,1726129837985,-153.74,0.00013433,2]
[337813187,1726129837995,-153.74,0.00013437,2]
[337813188,1726129838004,-153.74,0.00013441,2]
[337813189,1726129838014,-153.74,0.00013445,2]
[337813190,1726129838025,-153.74,0.00013449,2]
[337813191,1726129838034,-153.74,0.00013453,2]
[337813192,1726129838043,-153.74,0.00013456,2]
[337813193,1726129838053,-153.74,0.0001346,2]
[337813194,1726129838062,-153.74,0.00013464,2]
[337813195,1726129838072,-813.53,0.00013465,2]
[337813197,1726129838082,-153.74,0.00013468,2]
[337813198,1726129838091,-153.74,0.00013472,2]
[337813201,1726129838101,-153.74,0.00013476,2]
[337813203,1726129838111,-143.29833706,0.0001348,2]
[337813206,1726129838134,-10.44166294,0.0001348,2]
[337813208,1726129838143,-153.74,0.00013484,2]
[337813210,1726129838153,-153.74,0.00013488,2]
[337813212,1726129838162,-168.75,0.00013489,2]
[337813214,1726129838171,-788.37,0.0001351,2]
[337813216,1726129838181,-321.31,0.00013642,2]
[337813218,1726129838192,-587.98024718,0.00013699,2]
[337813224,1726129838234,-2949.88708974,0.00013699,2]
[337813226,1726129838246,-2949.88708974,0.00013699,2]
[337813350,1726129839898,-3082.51557334,0.00013699,2]
[337813351,1726129839907,-993.293025,0.00014565,2]
[337813352,1726129840029,-2776.9,0.00014565,2]
[337813353,1726129840121,-365.47998823,0.00014565,2]
[337813365,1726129842705,-5241.11548677,0.00014565,2]
[337813366,1726129842715,-300.0,0.00014565,2]
[337813367,1726129842725,-1954.3021,0.00014584,2]
[337813368,1726129842734,-264.81,0.000146,2]
[337813369,1726129842744,-150.0,0.00014641,2]
[337813370,1726129842754,-150.0,0.00014646,2]
[337813371,1726129842764,-150.0,0.00014648,2]
[337813372,1726129842774,-150.0,0.00014651,2]
[337813373,1726129842785,-150.0,0.00014654,2]
[337813374,1726129842794,-150.0,0.00014663,2]
[337813375,1726129842804,-151.0,0.00014665,2]
[337813376,1726129842813,-151.0,0.00014665,2]
[337813377,1726129842822,-301.300311,0.00014665,2]
[337813378,1726129842832,-150.0,0.00014672,2]
[337813379,1726129842842,-150.0,0.00014678,2]
[337813380,1726129842851,-183.8836,0.00014684,2]
[337813381,1726129842860,-2178.53706,0.0001469,2]
[337813382,1726129842871,-3271.6438,0.00014694,2]
[337813383,1726129842882,-166.38977048,0.00014694,2]
[337813384,1726129842892,-1260.97282756,0.00014694,2]
[337813385,1726129842903,-2408.91882994,0.00014694,2]
[337813386,1726129842912,-1260.97282753,0.00014697,2]
[337813387,1726129842923,-1260.97282753,0.000147,2]
[337813388,1726129842933,-150.0,0.00014701,2]
[337813389,1726129842943,-1260.97282753,0.00014704,2]
[337813390,1726129842953,-1260.97282753,0.00014707,2]
[337813391,1726129842962,-2408.91882992,0.00014708,2]
[337813392,1726129842971,-166.38977048,0.00014708,2]
[337813393,1726129842984,-1260.97282753,0.0001471,2]
[337813394,1726129842995,-1260.97282753,0.00014713,2]
[337813395,1726129843004,-152.59925876,0.00014714,2]
[337813396,1726129843014,-1260.97282753,0.00014717,2]
[337813397,1726129843023,-1260.97282753,0.0001472,2]
[337813398,1726129843035,-2408.91882992,0.00014721,2]
[337813399,1726129843045,-166.38977048,0.00014722,2]
[337813400,1726129843054,-1260.97282753,0.00014723,2]
[337813401,1726129843064,-150.0,0.00014725,2]
[337813402,1726129843073,-150.0,0.00014732,2]
[337813403,1726129843084,-1807.5929,0.00014733,2]
[337813404,1726129843093,-10258.4289,0.00014733,2]
[337813405,1726129843103,-150.0,0.0001474,2]
[337813406,1726129843113,-1000.0,0.00014742,2]
[337813407,1726129843123,-150.0,0.00014744,2]
[337813408,1726129843133,-151.0,0.00014765,2]
[337813409,1726129843143,-244.508029,0.00014765,2]
[337813410,1726129843153,-150.0,0.00014767,2]
[337813411,1726129843163,-500.31440959,0.00014773,2]
[337813412,1726129843173,-7327.16003305,0.00014774,2]
[337813413,1726129843183,-799.63,0.00014774,3]
[337813414,1726129843193,-151.0,0.0001478,2]
[337813415,1726129843202,-150.0,0.0001478,2]
[337813416,1726129843212,-1000.0,0.00014783,2]
[337813417,1726129843222,-1000.0,0.00014783,2]
[337813418,1726129843232,-1000.0,0.00014783,2]
[337813419,1726129843242,-1000.0,0.00014783,2]
[337813420,1726129843252,-1000.0,0.00014783,2]
[337813421,1726129843262,-1000.0,0.00014783,2]
[337813422,1726129843272,-1006.50454031,0.00014783,2]
[337813423,1726129843282,-151.6,0.00014784,2]
[337813424,1726129843291,-33667.79473513,0.00014794,2]
[337813425,1726129844322,-44261.72330165,0.00014794,2]
[337813426,1726129844358,-316.220239,0.00014794,2]
[337813427,1726129844379,-858.6849167,0.00014794,2]
[337813428,1726129844391,-5600.45753548,0.00014794,2]
[337813429,1726129844404,-5602.8437412,0.00014794,2]
[337813430,1726129844417,-5722.24100985,0.00014794,2]
[337813443,1726129845922,-2122.03395148,0.00014794,2]
[337813444,1726129845934,-494.44395,0.00014794,2]
[337813445,1726129845945,-2777.75,0.00014794,2]
[337813586,1726129847624,-857.82973231,0.00014794,2]
[337813588,1726129847636,-3836.83978209,0.00014794,2]
[337813590,1726129847648,-1260.56006181,0.00014794,2]
[337813592,1726129847661,-1648.29,0.00014794,2]
[337813594,1726129847671,-2145.93,0.00014794,2]
[337813596,1726129847682,-500.0,0.00014794,2]
[337813598,1726129847691,-1285.25,0.00014794,2]
[337813600,1726129847701,-500.0,0.00014794,2]
[337813602,1726129847712,-1810.88,0.00014794,2]
[337813604,1726129847721,-748.52676459,0.00014794,2]
[337813606,1726129847736,-76.94323541,0.00014794,2]
[337813608,1726129847746,-554.24,0.00014794,2]
[337813610,1726129847755,-500.0,0.00014794,2]
[337813612,1726129847765,-960.76722376,0.00014794,2]
[337813614,1726129847785,-1169.98277624,0.00014794,2]
[337813616,1726129847795,-500.0,0.00014794,2]
[337813618,1726129847804,-500.0,0.00014794,2]
[337813620,1726129847814,-500.0,0.00014794,2]
[337813622,1726129847823,-1364.15,0.00014794,2]
[337813623,1726129847833,-1355.48,0.00014794,2]
[337813625,1726129847842,-1189.58,0.00014794,2]
[337813627,1726129847852,-509.78,0.00014794,2]
[337813629,1726129847862,-500.0,0.00014794,2]
[337813631,1726129847871,-2932.51,0.00014794,2]
[337813633,1726129847881,-1543.88,0.00014794,2]
[337813635,1726129847890,-1662.87,0.00014794,2]
[337813637,1726129847899,-1169.02,0.00014794,2]
[337813639,1726129847908,-748.28,0.00014794,2]
[337813640,1726129847917,-500.0,0.00014794,2]
[337813642,1726129847926,-1175.8,0.00014794,2]
[337813644,1726129847935,-299.99195884,0.00014794,2]
[337813646,1726129847945,-1845.69,0.00014794,2]
[337813648,1726129847954,-498.02712285,0.00014794,2]
[337813650,1726129847963,-500.0,0.00014794,2]
[337813652,1726129847972,-502.61066175,0.00014794,2]
[337813654,1726129847988,-1721.28933825,0.00014794,2]
[337813656,1726129847997,-500.0,0.00014794,2]
[337813658,1726129848006,-322.72391863,0.00014794,2]
[337813661,1726129848034,-48.360116,0.00014794,2]
[337813663,1726129848044,-366.449884,0.00014794,2]
[337813665,1726129848055,-133.550116,0.00014794,2]
[337813667,1726129848065,-621.1,0.00014794,2]
[337813669,1726129848074,-629.54,0.00014794,2]
[337813671,1726129848084,-1723.75491715,0.00014794,2]
[337813673,1726129848097,-347.46508285,0.00014794,2]
[337813675,1726129848106,-62.39491715,0.00014794,2]
[337813677,1726129848118,-437.60508285,0.00014794,2]
[337813679,1726129848127,-737.56,0.00014794,2]
[337813681,1726129848137,-508.37511256,0.00014794,2]
[337813683,1726129848146,-290.0694814,0.00014794,2]
[337813685,1726129848159,-344.8805186,0.00014794,2]
[337813687,1726129848169,-500.0,0.00014794,2]
[337813689,1726129848179,-1308.36,0.00014794,2]
[337813691,1726129848188,-1191.7,0.00014794,2]
[337813692,1726129848197,-500.0,0.00014794,2]
[337813694,1726129848207,-1079.5,0.00014794,2]
[337813696,1726129848217,-1323.19,0.00014794,2]
[337813698,1726129848226,-500.0,0.00014794,2]
[337813700,1726129848235,-2005.2,0.00014794,2]
[337813702,1726129848245,-671.18,0.00014794,2]
[337813704,1726129848254,-500.0,0.00014794,2]
[337813705,1726129848263,-557.93494069,0.00014794,2]
[337813707,1726129848273,-687.26,0.00014794,2]
[337813709,1726129848283,-728.93,0.00014794,2]
[337813711,1726129848292,-500.0,0.00014794,2]
[337813713,1726129848302,-879.32,0.00014794,2]
[337813715,1726129848312,-721.15,0.00014794,2]
[337813717,1726129848322,-991.26,0.00014794,2]
[337813719,1726129848332,-1146.02,0.00014794,2]
[337813721,1726129848342,-32.57198441,0.00014794,2]
[337813723,1726129848357,-1732.40801559,0.00014794,2]
[337813725,1726129848367,-368.76234105,0.00014794,2]
[337813727,1726129848377,-2425.97,0.00014794,2]
[337813729,1726129848386,-500.0,0.00014794,2]
[337813731,1726129848396,-2478.79,0.00014794,2]
[337813732,1726129848405,-1034.23,0.00014794,2]
[337813734,1726129848414,-963.25,0.00014794,2]
[337813736,1726129848424,-806.19,0.00014794,2]
[337813738,1726129848434,-500.0,0.00014794,2]
[337813740,1726129848444,-1112.71,0.00014794,2]
[337813742,1726129848454,-500.0,0.00014794,2]
[337813744,1726129848464,-1291.48,0.00014794,2]
[337813746,1726129848474,-664.92,0.00014794,2]
[337813747,1726129848483,-544.05,0.00014794,2]
[337813749,1726129848494,-500.0,0.00014794,2]
[337813751,1726129848504,-500.0,0.00014794,2]
[337813753,1726129848514,-500.0,0.00014794,2]
[337813755,1726129848523,-641.63,0.00014794,2]
[337813757,1726129848532,-202.133019,0.00014794,2]
[337813758,1726129848542,-500.0,0.00014794,2]
[337813760,1726129848551,-500.0,0.00014794,2]
[337813762,1726129848561,-202.133019,0.00014794,2]
[337813764,1726129848571,-151.0,0.00014794,2]
[337813766,1726129848581,-151.0,0.00014794,2]
[337813768,1726129848590,-7794.57,0.00014794,2]
[337813770,1726129848599,-7794.57,0.00014794,2]
[337813771,1726129848609,-7794.57,0.00014794,2]
[337813773,1726129848618,-637.48,0.00014794,2]
[337813775,1726129848628,-638.4,0.00014794,2]
[337813777,1726129848638,-539.49,0.00014794,2]
[337813779,1726129848648,-6879.21,0.00014794,2]
[337813781,1726129848659,-620.07,0.00014794,2]
[337813782,1726129848670,-6879.21,0.00014794,2]
[337813784,1726129848681,-6879.21,0.00014794,2]
[337813786,1726129848690,-698.77,0.00014794,2]
[337813788,1726129848699,-151.0,0.00014794,2]
[337813790,1726129848709,-151.0,0.00014794,2]
[337813792,1726129848719,-2191.3,0.00014794,2]
[337813794,1726129848732,-1880.73,0.00014794,2]
[337813796,1726129848743,-151.0,0.00014794,2]
[337813798,1726129848752,-151.0,0.00014794,2]
[337813800,1726129848762,-500.0,0.00014794,2]
[337813802,1726129848772,-960.96,0.00014794,2]
[337813803,1726129848782,-151.0,0.00014794,2]
[337813805,1726129848800,-151.0,0.00014794,2]
[337813807,1726129848809,-502.16641968,0.00014794,2]
[337813809,1726129848818,-1742.13,0.00014794,2]
[337813811,1726129848828,-839.75,0.00014794,2]
[337813812,1726129848838,-500.0,0.00014794,2]
[337813814,1726129848847,-500.0,0.00014794,2]
[337813816,1726129848856,-151.0,0.00014794,2]
[337813818,1726129848866,-151.0,0.00014794,2]
[337813820,1726129848875,-500.0,0.00014794,2]
[337813822,1726129848885,-3967.83,0.00014794,2]
[337813824,1726129848894,-3967.83,0.00014794,2]
[337813825,1726129848903,-829.74,0.00014794,2]
[337813827,1726129848913,-3967.83,0.00014794,2]
[337813829,1726129848922,-151.0,0.00014794,2]
[337813831,1726129848931,-500.0,0.00014794,2]
[337813833,1726129848940,-675.12,0.00014794,2]
[337813835,1726129848950,-500.0,0.00014794,2]
[337813837,1726129848959,-500.0,0.00014794,2]
[337813839,1726129848969,-500.0,0.00014794,2]
[337813841,1726129848978,-500.0,0.00014794,2]
[337813842,1726129848988,-500.0,0.00014794,2]
[337813844,1726129848997,-500.0,0.00014794,2]
[337813846,1726129849006,-500.0,0.00014794,2]
[337813848,1726129849016,-820.6,0.00014794,2]
[337813850,1726129849026,-500.0,0.00014794,2]
[337813852,1726129849039,-509.29,0.00014794,2]
[337813854,1726129849048,-3982.86,0.00014794,2]
[337813856,1726129849058,-290.377616,0.00014794,2]
[337813858,1726129849067,-151.0,0.00014794,2]
[337813860,1726129849077,-4663.66,0.00014794,2]
[337813861,1726129849086,-500.0,0.00014794,2]
[337813863,1726129849095,-290.377616,0.00014794,2]
[337813865,1726129849105,-4663.66,0.00014794,2]
[337813867,1726129849114,-151.0,0.00014794,2]
[337813869,1726129849124,-500.0,0.00014794,2]
[337813871,1726129849134,-290.377616,0.00014794,2]
[337813873,1726129849143,-738.98,0.00014794,2]
[337813875,1726129849153,-4663.66,0.00014794,2]
[337813877,1726129849162,-500.0,0.00014794,2]
[337813878,1726129849171,-500.0,0.00014794,2]
[337813880,1726129849181,-500.0,0.00014794,2]
[337813882,1726129849191,-500.0,0.00014794,2]
[337813884,1726129849200,-1071.97,0.00014794,2]
[337813886,1726129849210,-1071.97,0.00014794,2]
[337813888,1726129849220,-1071.97,0.00014794,2]
[337813890,1726129849230,-290.377616,0.00014794,2]
[337813892,1726129849239,-500.0,0.00014794,2]
[337813894,1726129849249,-290.377616,0.00014794,2]
[337813896,1726129849258,-290.377616,0.00014794,2]
[337813898,1726129849269,-500.0,0.00014794,2]
[337813900,1726129849279,-500.0,0.00014794,2]
[337813901,1726129849290,-500.0,0.00014794,2]
[337813903,1726129849299,-500.0,0.00014794,2]
[337813905,1726129849309,-500.0,0.00014794,2]
[337813907,1726129849319,-500.0,0.00014794,2]
[337813909,1726129849328,-2387.43,0.00014794,2]
[337813911,1726129849338,-4911.92,0.00014794,2]
[337813913,1726129849347,-4911.92,0.00014794,2]
[337813915,1726129849356,-500.0,0.00014794,2]
[337813917,1726129849365,-4911.92,0.00014794,2]
[337813919,1726129849375,-531.55,0.00014794,2]
[337813921,1726129849384,-500.0,0.00014794,2]
[337813923,1726129849393,-500.0,0.00014794,2]
[337813924,1726129849404,-500.0,0.00014794,2]
[337813925,1726129849413,-1379.1,0.00014794,2]
[337813926,1726129849423,-500.0,0.00014794,2]
[337813927,1726129849433,-1379.1,0.00014794,2]
[337813928,1726129849443,-500.0,0.00014794,2]
[337813929,1726129849452,-1379.1,0.00014794,2]
[337813930,1726129849462,-500.0,0.00014794,2]
[337813931,1726129849471,-500.0,0.00014794,2]
[337813932,1726129849481,-500.0,0.00014794,2]
[337813933,1726129849491,-500.0,0.00014794,2]
[337813934,1726129849500,-500.0,0.00014794,2]
[337813935,1726129849510,-500.0,0.00014794,2]
[337813936,1726129849519,-500.0,0.00014794,2]
[337813937,1726129849528,-500.0,0.00014794,2]
[337813938,1726129849538,-539.92,0.00014794,2]
[337813939,1726129849547,-500.0,0.00014794,2]
[337813940,1726129849557,-500.0,0.00014794,2]
[337813941,1726129849566,-500.0,0.00014794,2]
[337813942,1726129849575,-500.0,0.00014794,2]
[337813943,1726129849584,-500.0,0.00014794,2]
[337813944,1726129849594,-312.78384375,0.00014794,2]
[337813945,1726129849604,-500.0,0.00014794,2]
[337813946,1726129849614,-1306.01,0.00014794,2]
[337813947,1726129849624,-5701.32,0.00014794,2]
[337813949,1726129849634,-5701.32,0.00014794,2]
[337813950,1726129849644,-3115.87,0.00014794,2]
[337813952,1726129849654,-5701.32,0.00014794,2]
[337813953,1726129849668,-3115.87,0.00014794,2]
[337813955,1726129849678,-5701.32,0.00014794,2]
[337813957,1726129849687,-152.562291,0.00014794,2]
[337813959,1726129849696,-5701.32,0.00014794,2]
[337813961,1726129849707,-3115.87,0.00014794,2]
[337813963,1726129849717,-500.0,0.00014794,2]
[337813965,1726129849726,-500.0,0.00014794,2]
[337813968,1726129849736,-500.0,0.00014794,2]
[337813969,1726129849745,-500.0,0.00014794,2]
[337813972,1726129849755,-500.0,0.00014794,2]
[337813974,1726129849765,-500.0,0.00014794,2]
[337813976,1726129849774,-500.0,0.00014794,2]
[337813978,1726129849785,-500.0,0.00014794,2]
[337813980,1726129849794,-153.09858,0.00014794,2]
[337813982,1726129849804,-500.0,0.00014794,2]
[337813984,1726129849813,-500.0,0.00014794,2]
[337813986,1726129849822,-676.01,0.00014794,2]
[337813988,1726129849831,-500.0,0.00014794,2]
[337813990,1726129849840,-676.01,0.00014794,2]
[337813992,1726129849850,-500.0,0.00014794,2]
[337813994,1726129849858,-676.01,0.00014794,2]
[337813996,1726129849867,-3571.51,0.00014794,2]
[337813998,1726129849876,-500.0,0.00014794,2]
[337814000,1726129849887,-500.0,0.00014794,2]
[337814002,1726129849896,-500.0,0.00014794,2]
[337814004,1726129849906,-500.0,0.00014794,2]
[337814006,1726129849915,-500.0,0.00014794,2]
[337814008,1726129849927,-500.0,0.00014794,2]
[337814010,1726129849936,-5233.37,0.00014794,2]
[337814012,1726129849946,-1235.79,0.00014794,2]
[337814014,1726129849957,-5233.37,0.00014794,2]
[337814017,1726129849968,-5233.37,0.00014794,2]
[337814019,1726129849977,-5233.37,0.00014794,2]
[337814021,1726129849986,-5233.37,0.00014794,2]
[337814022,1726129849995,-1759.84,0.00014794,2]
[337814024,1726129850004,-1759.84,0.00014794,2]
[337814026,1726129850014,-1759.84,0.00014794,2]
[337814029,1726129850024,-1759.84,0.00014794,2]
[337814030,1726129850033,-1759.84,0.00014794,2]
[337814033,1726129850043,-1759.84,0.00014794,2]
[337814035,1726129850052,-1309.41,0.00014794,2]
[337814037,1726129850061,-500.0,0.00014794,2]
[337814039,1726129850070,-500.0,0.00014794,2]
[337814041,1726129850080,-500.0,0.00014794,2]
[337814043,1726129850089,-500.0,0.00014794,2]
[337814045,1726129850098,-533.08298033,0.00014794,2]
[337814046,1726129850107,-500.0,0.00014794,2]
[337814048,1726129850117,-1497.19,0.00014794,2]
[337814050,1726129850126,-1497.19,0.00014794,2]
[337814052,1726129850135,-500.0,0.00014794,2]
[337814054,1726129850145,-2606.37,0.00014794,2]
[337814056,1726129850155,-1497.19,0.00014794,2]
[337814058,1726129850164,-500.0,0.00014794,2]
[337814060,1726129850173,-500.0,0.00014794,2]
[337814062,1726129850183,-7096.65,0.00014794,2]
[337814064,1726129850193,-500.0,0.00014794,2]
[337814066,1726129850202,-7096.65,0.00014794,2]
[337814068,1726129850212,-500.0,0.00014794,2]
[337814070,1726129850222,-500.0,0.00014794,2]
[337814073,1726129850233,-7096.65,0.00014794,2]
[337814075,1726129850242,-7096.65,0.00014794,2]
[337814077,1726129850251,-7096.65,0.00014794,2]
[337814079,1726129850262,-500.0,0.00014794,2]
[337814081,1726129850271,-2277.91,0.00014794,2]
[337814083,1726129850282,-4867.33,0.00014794,2]
[337814085,1726129850291,-500.0,0.00014794,2]
[337814087,1726129850301,-4867.33,0.00014794,2]
[337814089,1726129850310,-4867.33,0.00014794,2]
[337814091,1726129850320,-4867.33,0.00014794,2]
[337814093,1726129850329,-4867.33,0.00014794,2]
[337814095,1726129850338,-4867.33,0.00014794,2]
[337814097,1726129850349,-608.42,0.00014794,2]
[337814099,1726129850358,-500.0,0.00014794,2]
[337814101,1726129850367,-500.0,0.00014794,2]
[337814103,1726129850377,-500.0,0.00014794,2]
[337814105,1726129850387,-500.0,0.00014794,2]
[337814107,1726129850396,-500.0,0.00014794,2]
[337814109,1726129850407,-500.0,0.00014794,2]
[337814112,1726129850418,-20000.0,0.00014794,2]
[337814114,1726129850428,-20000.0,0.00014794,2]
[337814116,1726129850437,-20000.0,0.00014794,2]
[337814118,1726129850447,-934.47,0.00014794,2]
[337814120,1726129850456,-20000.0,0.00014794,2]
[337814122,1726129850466,-18313.79187923,0.00014794,2]
[337814129,1726129850525,-1686.20812077,0.00014794,2]
[337814131,1726129850534,-151.0,0.00014794,2]
[337814133,1726129850543,-151.0,0.00014794,2]
[337814135,1726129850553,-151.0,0.00014794,2]
[337814137,1726129850563,-500.0,0.00014794,2]
[337814139,1726129850574,-500.0,0.00014794,2]
[337814141,1726129850584,-500.0,0.00014794,2]
[337814143,1726129850593,-3792.2,0.00014794,2]
[337814146,1726129850604,-3792.2,0.00014794,2]
[337814148,1726129850614,-215.48489466,0.00014794,2]
[337814150,1726129850623,-3792.2,0.00014794,2]
[337814152,1726129850633,-518.34,0.00014794,2]
[337814154,1726129850642,-3792.2,0.00014794,2]
[337814156,1726129850651,-3792.2,0.00014794,2]
[337814158,1726129850664,-500.0,0.00014794,2]
[337814160,1726129850674,-500.0,0.00014794,2]
[337814162,1726129850684,-504.76,0.00014794,2]
[337814164,1726129850694,-194.14324553,0.00014794,2]
[337814167,1726129850708,-305.85675447,0.00014794,2]
[337814168,1726129850718,-504.76,0.00014794,2]
[337814170,1726129850727,-500.0,0.00014794,2]
[337814172,1726129850736,-504.76,0.00014794,2]
[337814174,1726129850745,-500.0,0.00014794,2]
[337814176,1726129850754,-500.0,0.00014794,2]
[337814178,1726129850764,-500.0,0.00014794,2]
[337814180,1726129850773,-2025.85,0.00014794,2]
[337814182,1726129850783,-2025.85,0.00014794,2]
[337814184,1726129850792,-2025.85,0.00014794,2]
[337814186,1726129850802,-2025.85,0.00014794,2]
[337814188,1726129850812,-2025.85,0.00014794,2]
[337814190,1726129850821,-2025.85,0.00014794,2]
[337814192,1726129850831,-1642.44,0.00014794,2]
[337814194,1726129850840,-3543.47652854,0.00014794,2]
[337814197,1726129850855,-1405.87347146,0.00014794,2]
[337814199,1726129850865,-106.78810052,0.00014794,2]
[337814202,1726129850884,-254.08592998,0.00014794,2]
[337815158,1726129988801,780.51,0.00011905,2]
[337815159,1726130032395,153.19,0.00010959,2]
[337815169,1726130490603,809.44,0.00011833,2]
[337815215,1726131031795,-178.69,0.00013144,2]
[337815216,1726131031804,-150.0,0.0001329,2]
[337815217,1726131031813,-29.34106852,0.0001329,2]
[337815218,1726131031850,-120.65893148,0.0001329,2]
[337815219,1726131031859,-150.0,0.0001329,2]
[337815220,1726131031869,-250.0,0.000135,2]
[337815221,1726131031878,-1896.98984934,0.00013545,2]
[337815222,1726131031890,-2063.74636447,0.00013545,2]
[337815223,1726131031902,-362.77667833,0.00013545,2]
[337815224,1726131031930,-360.246502,0.00013545,2]
[337815225,1726131031967,-19216.24060586,0.00013545,2]
[337815226,1726131031976,-1000.0,0.00013576,2]
[337815227,1726131031986,-660.45,0.00013579,2]
[337815228,1726131031995,-250.0,0.00013696,2]
[337815229,1726131032006,-168.75,0.00013739,2]
[337815230,1726131032017,-257.04,0.00013742,2]
[337815231,1726131032027,-250.0,0.00013742,2]
[337815232,1726131032036,-397.41,0.00013751,2]
[337815233,1726131032047,-162.33,0.00013761,2]
[337815234,1726131032056,-809.44,0.00014097,2]
[337815235,1726131032066,-1704.9,0.00014146,6]
[337815236,1726131032075,-192.69,0.00014222,2]
[337815237,1726131032085,-150.0,0.00014675,2]
[337815238,1726131032096,-183.5475631,0.00014684,2]
[337815239,1726131032105,-150.0,0.00014684,2]
[337815240,1726131032115,-155.20671135,0.00014684,2]
[337815241,1726131032124,-155.20671132,0.00014685,2]
[337815242,1726131032134,-155.20671132,0.00014686,2]
[337815243,1726131032143,-155.20671132,0.00014687,2]
[337815244,1726131032153,-155.20671132,0.00014688,2]
[337815245,1726131032162,-155.20671132,0.0001469,2]
[337815246,1726131032173,-155.20671132,0.00014691,2]
[337815247,1726131032183,-155.20671132,0.00014692,2]
[337815248,1726131032192,-155.20671132,0.00014693,2]
[337815249,1726131032201,-152.59925876,0.00014694,2]
[337815250,1726131032210,-155.20671132,0.00014694,2]
[337815251,1726131032219,-399.33544912,0.00014694,2]
[337815252,1726131032228,-157.02418448,0.00014694,2]
[337815253,1726131032238,-152.0,0.00014699,3]
[337815254,1726131032247,-395.16004785,0.00014705,2]
[337815256,1726131032257,-1500.0,0.00014758,2]
[337815257,1726131032267,-41685.3092812,0.00014774,2]
[337815258,1726131032277,-5210.66366015,0.00014783,2]
[337815259,1726131032286,-150.0,0.00014783,2]
[337815260,1726131032296,-31263.9819609,0.00014784,2]
[337815261,1726131032305,-79943.98011381,0.00014784,2]
[337815262,1726131032328,-740.15910014,0.00014784,2]
[337815265,1726131037975,-19042.63346964,0.00014784,2]
[337815266,1726131037995,-460.30867202,0.00014784,2]
[337815267,1726131038041,-1007.07875757,0.00014784,2]
[337815752,1726131043441,-6528.20672465,0.00014784,2]
[337815973,1726131045925,-258.815,0.00014784,2]